[Event "Titled Tuesday Blitz February 22 Early 2022"]
[White "Jobava, Baadur"]
[Black "Goltseva, Ekaterina"]
[WhiteFideId "13601520"]
[BlackFideId "24173770"]
[WhiteElo "2617"]
[BlackElo "2140"]
[Result "1-0"]
[Round "02"]
[TimeControl "180+1"]
[Date "2022.02.22"]
[WhiteClock "0:01:10"]
[BlackClock "0:00:06"]

1. d4 {[%clk 0:03:00]}  Nf6 {[%clk 0:02:59]} 2. Nc3 {[%clk 0:03:01]}  d5 {[%clk 0:02:59]} 3. Bf4 {[%clk 0:03:02]}  e6 {[%clk 0:02:58]} 4. Nb5 {[%clk 0:03:02]}  Na6 {[%clk 0:02:57]} 5. e3 {[%clk 0:03:02]}  Be7 {[%clk 0:02:47]} 6. Nf3 {[%clk 0:03:02]}  O-O {[%clk 0:02:46]} 7. h3 {[%clk 0:03:03]}  c6 {[%clk 0:02:44]} 8. Nc3 {[%clk 0:03:03]}  Qa5 {[%clk 0:02:43]} 9. Bd3 {[%clk 0:02:59]}  Nb4 {[%clk 0:02:41]} 10. O-O {[%clk 0:02:57]}  c5 {[%clk 0:02:39]} 11. dxc5 {[%clk 0:02:48]}  Qxc5 {[%clk 0:02:31]} 12. a3 {[%clk 0:02:44]}  Nxd3 {[%clk 0:02:30]} 13. cxd3 {[%clk 0:02:45]}  Bd7 {[%clk 0:02:30]} 14. Qb3 {[%clk 0:02:44]}  Bc6 {[%clk 0:02:24]} 15. Rfc1 {[%clk 0:02:43]}  Qa5 {[%clk 0:02:24]} 16. Ne5 {[%clk 0:02:41]}  Rfc8 {[%clk 0:02:07]} 17. Ne2 {[%clk 0:02:40]}  Qb6 {[%clk 0:01:53]} 18. Qxb6 {[%clk 0:02:38]}  axb6 {[%clk 0:01:54]} 19. Kf1 {[%clk 0:02:33]}  Be8 {[%clk 0:01:49]} 20. Ke1 {[%clk 0:02:33]}  Nd7 {[%clk 0:01:47]} 21. Nxd7 {[%clk 0:02:31]}  Bxd7 {[%clk 0:01:47]} 22. Be5 {[%clk 0:02:32]}  f6 {[%clk 0:01:45]} 23. Bd4 {[%clk 0:02:30]}  Bc5 {[%clk 0:01:35]} 24. Kd2 {[%clk 0:02:27]}  e5 {[%clk 0:01:33]} 25. Bc3 {[%clk 0:02:20]}  Bb5 {[%clk 0:01:29]} 26. Bb4 {[%clk 0:02:15]}  Kf7 {[%clk 0:01:27]} 27. Bxc5 {[%clk 0:02:00]}  bxc5 {[%clk 0:01:27]} 28. Nc3 {[%clk 0:02:00]}  Bc6 {[%clk 0:01:24]} 29. d4 {[%clk 0:02:00]}  cxd4 {[%clk 0:01:20]} 30. exd4 {[%clk 0:02:01]}  exd4 {[%clk 0:01:05]} 31. Ne2 {[%clk 0:02:01]}  d3 {[%clk 0:00:55]} 32. Nd4 {[%clk 0:02:00]}  Bd7 {[%clk 0:00:45]} 33. Rxc8 {[%clk 0:01:57]}  Rxc8 {[%clk 0:00:44]} 34. Rc1 {[%clk 0:01:57]}  Rc4 {[%clk 0:00:41]} 35. Nb3 {[%clk 0:01:39]}  Ba4 {[%clk 0:00:23]} 36. Nc5 {[%clk 0:01:25]}  b5 {[%clk 0:00:13]} 37. b3 {[%clk 0:01:17]}  Rf4 {[%clk 0:00:03]} 38. f3 {[%clk 0:01:11]}  Rf5 {[%clk 0:00:02]} 39. bxa4 {[%clk 0:01:11]}  bxa4 {[%clk 0:00:03]} 40. Kxd3 {[%clk 0:01:11]}  Rg5 {[%clk 0:00:04]} 41. Rc2 {[%clk 0:01:11]}  Re5 {[%clk 0:00:05]} 42. Nxa4 {[%clk 0:01:11]}  Re1 {[%clk 0:00:05]} 43. Nc3 {[%clk 0:01:11]}  Ra1 {[%clk 0:00:06]} 44. Ra2 {[%clk 0:01:11]}  Re1 {[%clk 0:00:06]} 45. a4 {[%clk 0:01:11]}  Re6 {[%clk 0:00:06]} 46. a5 {[%clk 0:01:11]}  Ra6 {[%clk 0:00:07]} 47. Nxd5 {[%clk 0:01:11]}  Rd6 {[%clk 0:00:05]} 48. Kc4 {[%clk 0:01:10]}  Rc6+ {[%clk 0:00:06]} 49. Kb5 {[%clk 0:01:10]}  Rc8 {[%clk 0:00:07]} 50. Nb6 {[%clk 0:01:10]}  Rb8 {[%clk 0:00:06]} 51. a6 {[%clk 0:01:10]} 1-0


[Site "https://www.chess.com"]

[Event "Titled Tuesday Blitz February 22 Early 2022"]
[White "Jumabayev, Rinat"]
[Black "Khumalo, Keith"]
[WhiteFideId "13702661"]
[BlackFideId "14319470"]
[WhiteElo "2561"]
[BlackElo "1992"]
[Result "1-0"]
[Round "02"]
[TimeControl "180+1"]
[Date "2022.02.22"]
[WhiteClock "0:00:41"]
[BlackClock "0:01:44"]

1. d4 {[%clk 0:03:00]}  d5 {[%clk 0:02:57]} 2. c4 {[%clk 0:03:01]}  dxc4 {[%clk 0:02:57]} 3. Nf3 {[%clk 0:03:01]}  Nf6 {[%clk 0:02:55]} 4. e3 {[%clk 0:03:01]}  e6 {[%clk 0:02:56]} 5. Bxc4 {[%clk 0:03:01]}  a6 {[%clk 0:02:56]} 6. O-O {[%clk 0:03:01]}  c5 {[%clk 0:02:57]} 7. Re1 {[%clk 0:02:58]}  Nc6 {[%clk 0:02:57]} 8. Nc3 {[%clk 0:02:58]}  Be7 {[%clk 0:02:54]} 9. dxc5 {[%clk 0:02:56]}  Qxd1 {[%clk 0:02:54]} 10. Rxd1 {[%clk 0:02:57]}  Bxc5 {[%clk 0:02:55]} 11. Bd2 {[%clk 0:02:57]}  Bd7 {[%clk 0:02:55]} 12. Rac1 {[%clk 0:02:56]}  Rc8 {[%clk 0:02:55]} 13. Be1 {[%clk 0:02:48]}  b5 {[%clk 0:02:45]} 14. Be2 {[%clk 0:02:29]}  Nb4 {[%clk 0:02:35]} 15. Ne5 {[%clk 0:02:15]}  Ke7 {[%clk 0:02:34]} 16. Ne4 {[%clk 0:01:39]}  Nxe4 {[%clk 0:02:05]} 17. Rxd7+ {[%clk 0:01:36]}  Ke8 {[%clk 0:02:06]} 18. Bxb4 {[%clk 0:01:27]}  f6 {[%clk 0:02:03]} 19. Rd4 {[%clk 0:01:21]}  Ke7 {[%clk 0:01:46]} 20. Rxe4 {[%clk 0:01:04]}  Bxb4 {[%clk 0:01:46]} 21. Rxc8 {[%clk 0:00:57]}  Rxc8 {[%clk 0:01:44]} 22. Rxb4 {[%clk 0:00:57]}  Rc1+ {[%clk 0:01:45]} 23. Bf1 {[%clk 0:00:57]}  fxe5 {[%clk 0:01:46]} 24. a4 {[%clk 0:00:56]}  Rb1 {[%clk 0:01:41]} 25. axb5 {[%clk 0:00:55]}  a5 {[%clk 0:01:42]} 26. Ra4 {[%clk 0:00:56]}  Rxb2 {[%clk 0:01:42]} 27. Rxa5 {[%clk 0:00:56]}  Kf6 {[%clk 0:01:43]} 28. Ra4 {[%clk 0:00:56]}  Rb1 {[%clk 0:01:44]} 29. g3 {[%clk 0:00:55]}  h5 {[%clk 0:01:45]} 30. h4 {[%clk 0:00:55]}  g5 {[%clk 0:01:45]} 31. hxg5+ {[%clk 0:00:55]}  Kxg5 {[%clk 0:01:46]} 32. Kg2 {[%clk 0:00:56]}  Kf6 {[%clk 0:01:46]} 33. Be2 {[%clk 0:00:55]}  Rb2 {[%clk 0:01:47]} 34. Bxh5 {[%clk 0:00:53]}  Rxb5 {[%clk 0:01:46]} 35. Bf3 {[%clk 0:00:53]}  Kf5 {[%clk 0:01:46]} 36. Rh4 {[%clk 0:00:53]}  Kg5 {[%clk 0:01:46]} 37. Rh5+ {[%clk 0:00:52]}  Kf6 {[%clk 0:01:47]} 38. Bg4 {[%clk 0:00:51]}  Rb4 {[%clk 0:01:44]} 39. Bh3 {[%clk 0:00:51]}  Rb6 {[%clk 0:01:43]} 40. Rh6+ {[%clk 0:00:48]}  Kf7 {[%clk 0:01:43]} 41. Kf3 {[%clk 0:00:46]}  Rc6 {[%clk 0:01:42]} 42. Rxe6 {[%clk 0:00:39]}  Rxe6 {[%clk 0:01:42]} 43. Bxe6+ {[%clk 0:00:40]}  Kxe6 {[%clk 0:01:43]} 44. Ke4 {[%clk 0:00:40]}  Kf6 {[%clk 0:01:44]} 45. g4 {[%clk 0:00:40]}  Ke6 {[%clk 0:01:44]} 46. f4 {[%clk 0:00:40]}  exf4 {[%clk 0:01:44]} 47. exf4 {[%clk 0:00:41]} 1-0


[Site "https://www.chess.com"]

[Event "Titled Tuesday Blitz February 22 Early 2022"]
[White "Khamzin, Olzhas"]
[Black "Abdisalimov, Abdimalik"]
[WhiteFideId "13701690"]
[BlackFideId "14206323"]
[WhiteElo "2194"]
[BlackElo "2401"]
[Result "0-1"]
[Round "02"]
[TimeControl "180+1"]
[Date "2022.02.22"]
[WhiteClock "0:00:20"]
[BlackClock "0:01:16"]

1. d4 {[%clk 0:03:00]}  Nf6 {[%clk 0:02:59]} 2. Nc3 {[%clk 0:03:01]}  d5 {[%clk 0:02:59]} 3. Bg5 {[%clk 0:03:02]}  Bf5 {[%clk 0:02:59]} 4. e3 {[%clk 0:03:02]}  e6 {[%clk 0:02:59]} 5. Bd3 {[%clk 0:03:02]}  Bg6 {[%clk 0:03:00]} 6. f4 {[%clk 0:03:02]}  c5 {[%clk 0:02:59]} 7. Nf3 {[%clk 0:03:02]}  Nc6 {[%clk 0:03:00]} 8. O-O {[%clk 0:02:58]}  Be7 {[%clk 0:02:48]} 9. Kh1 {[%clk 0:02:56]}  O-O {[%clk 0:02:47]} 10. Bxf6 {[%clk 0:02:46]}  Bxf6 {[%clk 0:02:48]} 11. Ne2 {[%clk 0:02:45]}  Qb6 {[%clk 0:02:44]} 12. Bxg6 {[%clk 0:02:41]}  hxg6 {[%clk 0:02:40]} 13. Rb1 {[%clk 0:02:41]}  Na5 {[%clk 0:02:23]} 14. Ne5 {[%clk 0:02:33]}  Bxe5 {[%clk 0:02:18]} 15. fxe5 {[%clk 0:02:34]}  Nc4 {[%clk 0:02:19]} 16. Rf3 {[%clk 0:02:34]}  Qa5 {[%clk 0:02:10]} 17. a3 {[%clk 0:02:06]}  Qd2 {[%clk 0:02:09]} 18. Nc3 {[%clk 0:01:30]}  Rac8 {[%clk 0:01:59]} 19. Nb5 {[%clk 0:01:19]}  a6 {[%clk 0:01:55]} 20. Nd6 {[%clk 0:01:18]}  Qxd1+ {[%clk 0:01:54]} 21. Rxd1 {[%clk 0:01:18]}  Nxd6 {[%clk 0:01:55]} 22. exd6 {[%clk 0:01:19]}  Rfd8 {[%clk 0:01:47]} 23. c3 {[%clk 0:00:58]}  Rxd6 {[%clk 0:01:45]} 24. Rdf1 {[%clk 0:00:58]}  f6 {[%clk 0:01:44]} 25. Rg3 {[%clk 0:00:59]}  g5 {[%clk 0:01:45]} 26. Rgf3 {[%clk 0:00:58]}  a5 {[%clk 0:01:43]} 27. h3 {[%clk 0:00:55]}  Rb6 {[%clk 0:01:42]} 28. R3f2 {[%clk 0:00:53]}  Rb3 {[%clk 0:01:41]} 29. Rd1 {[%clk 0:00:49]}  b5 {[%clk 0:01:38]} 30. dxc5 {[%clk 0:00:39]}  Rxc5 {[%clk 0:01:37]} 31. Kh2 {[%clk 0:00:39]}  b4 {[%clk 0:01:37]} 32. axb4 {[%clk 0:00:40]}  axb4 {[%clk 0:01:38]} 33. cxb4 {[%clk 0:00:41]}  Rxb4 {[%clk 0:01:37]} 34. Rdd2 {[%clk 0:00:40]}  Rb3 {[%clk 0:01:36]} 35. Rfe2 {[%clk 0:00:39]}  Rc4 {[%clk 0:01:36]} 36. Kg3 {[%clk 0:00:38]}  Kf7 {[%clk 0:01:35]} 37. Kf3 {[%clk 0:00:38]}  f5 {[%clk 0:01:35]} 38. Kf2 {[%clk 0:00:39]}  Kf6 {[%clk 0:01:35]} 39. Kf1 {[%clk 0:00:38]}  Ke5 {[%clk 0:01:35]} 40. Kf2 {[%clk 0:00:39]}  Ke4 {[%clk 0:01:35]} 41. g3 {[%clk 0:00:36]}  Rcb4 {[%clk 0:01:34]} 42. Rc2 {[%clk 0:00:34]}  e5 {[%clk 0:01:26]} 43. Rcd2 {[%clk 0:00:33]}  Rc4 {[%clk 0:01:24]} 44. Rd1 {[%clk 0:00:29]}  Rd3 {[%clk 0:01:23]} 45. Ra1 {[%clk 0:00:25]}  Rb4 {[%clk 0:01:22]} 46. Ra7 {[%clk 0:00:19]}  Rdb3 {[%clk 0:01:22]} 47. Ra2 {[%clk 0:00:18]}  g6 {[%clk 0:01:21]} 48. Rc2 {[%clk 0:00:18]}  Rxe3 {[%clk 0:01:20]} 49. b3 {[%clk 0:00:18]}  f4 {[%clk 0:01:19]} 50. gxf4 {[%clk 0:00:18]}  gxf4 {[%clk 0:01:19]} 51. Ra4 {[%clk 0:00:18]}  Rxb3 {[%clk 0:01:18]} 52. Rxb4+ {[%clk 0:00:18]}  Rxb4 {[%clk 0:01:19]} 53. Rc6 {[%clk 0:00:18]}  Kf5 {[%clk 0:01:18]} 54. h4 {[%clk 0:00:18]}  Rb2+ {[%clk 0:01:18]} 55. Ke1 {[%clk 0:00:18]}  d4 {[%clk 0:01:17]} 56. h5 {[%clk 0:00:19]}  gxh5 {[%clk 0:01:17]} 57. Rc8 {[%clk 0:00:19]}  Ke4 {[%clk 0:01:17]} 58. Kf1 {[%clk 0:00:19]}  Kf3 {[%clk 0:01:17]} 59. Kg1 {[%clk 0:00:19]}  d3 {[%clk 0:01:17]} 60. Kh1 {[%clk 0:00:19]}  e4 {[%clk 0:01:16]} 61. Rd8 {[%clk 0:00:20]}  Ke2 {[%clk 0:01:15]} 62. Kh2 {[%clk 0:00:19]}  f3 {[%clk 0:01:15]} 63. Kh3 {[%clk 0:00:20]}  e3 {[%clk 0:01:16]} 64. Kg3 {[%clk 0:00:19]}  d2 {[%clk 0:01:16]} 65. Kh4 {[%clk 0:00:20]}  f2 {[%clk 0:01:16]} 66. Kg3 {[%clk 0:00:20]}  f1=Q {[%clk 0:01:16]} 0-1


[Site "https://www.chess.com"]

[Event "Titled Tuesday Blitz February 22 Early 2022"]
[White "King, Alexander"]
[Black "Escudero Donoso, Felipe"]
[WhiteFideId "2063620"]
[BlackFideId "3410595"]
[WhiteElo "2306"]
[BlackElo "2184"]
[Result "1-0"]
[Round "02"]
[TimeControl "180+1"]
[Date "2022.02.22"]
[WhiteClock "0:00:06"]
[BlackClock "0:00:03"]

1. d4 {[%clk 0:03:00]}  Nf6 {[%clk 0:02:58]} 2. c4 {[%clk 0:03:00]}  e6 {[%clk 0:02:58]} 3. Nc3 {[%clk 0:03:00]}  d5 {[%clk 0:02:58]} 4. cxd5 {[%clk 0:03:00]}  exd5 {[%clk 0:02:59]} 5. Bg5 {[%clk 0:03:00]}  c6 {[%clk 0:03:00]} 6. Qc2 {[%clk 0:03:01]}  Bd6 {[%clk 0:02:58]} 7. e3 {[%clk 0:03:00]}  O-O {[%clk 0:02:56]} 8. Bd3 {[%clk 0:03:00]}  h6 {[%clk 0:02:54]} 9. Bh4 {[%clk 0:03:01]}  Re8 {[%clk 0:02:52]} 10. Nge2 {[%clk 0:03:01]}  a5 {[%clk 0:02:46]} 11. h3 {[%clk 0:03:01]}  Na6 {[%clk 0:02:45]} 12. a3 {[%clk 0:03:01]}  Nc7 {[%clk 0:02:45]} 13. O-O {[%clk 0:03:01]}  Ne6 {[%clk 0:02:43]} 14. f3 {[%clk 0:02:52]}  Ng5 {[%clk 0:02:42]} 15. f4 {[%clk 0:02:53]}  Nxh3+ {[%clk 0:02:37]} 16. gxh3 {[%clk 0:02:49]}  Rxe3 {[%clk 0:02:37]} 17. Bf5 {[%clk 0:02:35]}  Qe7 {[%clk 0:01:54]} 18. Bxc8 {[%clk 0:02:22]}  Rxc8 {[%clk 0:01:55]} 19. Kg2 {[%clk 0:02:09]}  Re8 {[%clk 0:01:51]} 20. Rf2 {[%clk 0:02:05]}  Qe6 {[%clk 0:01:43]} 21. Rh1 {[%clk 0:01:22]}  Nh5 {[%clk 0:01:26]} 22. f5 {[%clk 0:01:04]}  Qd7 {[%clk 0:01:12]} 23. Rf3 {[%clk 0:00:58]}  f6 {[%clk 0:00:40]} 24. Rhf1 {[%clk 0:00:49]}  Qe7 {[%clk 0:00:39]} 25. Rxe3 {[%clk 0:00:41]}  Qxe3 {[%clk 0:00:40]} 26. Rf3 {[%clk 0:00:42]}  Qe7 {[%clk 0:00:29]} 27. Qd2 {[%clk 0:00:41]}  b5 {[%clk 0:00:24]} 28. Ng3 {[%clk 0:00:41]}  Nf4+ {[%clk 0:00:17]} 29. Rxf4 {[%clk 0:00:40]}  Bxf4 {[%clk 0:00:18]} 30. Qxf4 {[%clk 0:00:40]}  b4 {[%clk 0:00:18]} 31. axb4 {[%clk 0:00:37]}  axb4 {[%clk 0:00:19]} 32. Nce2 {[%clk 0:00:35]}  Qa7 {[%clk 0:00:16]} 33. Qd2 {[%clk 0:00:33]}  b3 {[%clk 0:00:14]} 34. Nf4 {[%clk 0:00:27]}  Qa6 {[%clk 0:00:12]} 35. Ne6 {[%clk 0:00:25]}  g5 {[%clk 0:00:11]} 36. Nh5 {[%clk 0:00:18]}  Rxe6 {[%clk 0:00:06]} 37. fxe6 {[%clk 0:00:18]}  gxh4 {[%clk 0:00:07]} 38. Qe3 {[%clk 0:00:05]}  Qa2 {[%clk 0:00:03]} 39. Qe2 {[%clk 0:00:06]}  Qb1 {[%clk 0:00:03]} 40. e7 {[%clk 0:00:05]}  Qg6+ {[%clk 0:00:03]} 41. Kh2 {[%clk 0:00:05]}  Qe8 {[%clk 0:00:02]} 42. Nxf6+ {[%clk 0:00:05]}  Kf7 {[%clk 0:00:03]} 43. Nxe8 {[%clk 0:00:06]}  Kxe8 {[%clk 0:00:03]} 44. Qe6 {[%clk 0:00:06]} 1-0


[Site "https://www.chess.com"]

[Event "Titled Tuesday Blitz February 22 Early 2022"]
[White "Kozak, Antoni"]
[Black "Sahin, Handenur"]
[WhiteFideId "21832030"]
[BlackFideId "6334865"]
[WhiteElo "2232"]
[BlackElo "2114"]
[Result "1-0"]
[Round "02"]
[TimeControl "180+1"]
[Date "2022.02.22"]
[WhiteClock "0:01:40"]
[BlackClock "0:01:00"]

1. d4 {[%clk 0:03:00]}  d5 {[%clk 0:02:58]} 2. Bf4 {[%clk 0:02:59]}  Nf6 {[%clk 0:02:57]} 3. e3 {[%clk 0:02:59]}  e6 {[%clk 0:02:55]} 4. Bd3 {[%clk 0:02:59]}  Bd6 {[%clk 0:02:55]} 5. Bg3 {[%clk 0:02:59]}  Nbd7 {[%clk 0:02:53]} 6. Nf3 {[%clk 0:02:56]}  Qe7 {[%clk 0:02:53]} 7. Ne5 {[%clk 0:02:54]}  h5 {[%clk 0:02:40]} 8. h3 {[%clk 0:02:35]}  h4 {[%clk 0:02:39]} 9. Bh2 {[%clk 0:02:30]}  c5 {[%clk 0:02:34]} 10. c3 {[%clk 0:02:30]}  Ne4 {[%clk 0:02:18]} 11. Nd2 {[%clk 0:02:11]}  Nxd2 {[%clk 0:02:15]} 12. Qxd2 {[%clk 0:02:11]}  Bxe5 {[%clk 0:02:12]} 13. dxe5 {[%clk 0:02:12]}  c4 {[%clk 0:02:12]} 14. Bc2 {[%clk 0:02:11]}  Nc5 {[%clk 0:02:12]} 15. O-O {[%clk 0:02:10]}  b6 {[%clk 0:02:07]} 16. b4 {[%clk 0:02:10]}  cxb3 {[%clk 0:02:05]} 17. axb3 {[%clk 0:02:10]}  Bb7 {[%clk 0:02:05]} 18. Qd4 {[%clk 0:02:07]}  Qg5 {[%clk 0:01:42]} 19. f4 {[%clk 0:01:49]}  Qe7 {[%clk 0:01:36]} 20. f5 {[%clk 0:01:49]}  exf5 {[%clk 0:01:26]} 21. Rxf5 {[%clk 0:01:49]}  Ne6 {[%clk 0:01:11]} 22. Qa4+ {[%clk 0:01:44]}  Kf8 {[%clk 0:01:09]} 23. Raf1 {[%clk 0:01:43]}  Qc5 {[%clk 0:01:02]} 24. Rxf7+ {[%clk 0:01:42]}  Kg8 {[%clk 0:01:03]} 25. Qg4 {[%clk 0:01:42]}  Qxe3+ {[%clk 0:01:01]} 26. Kh1 {[%clk 0:01:42]}  Qxe5 {[%clk 0:01:00]} 27. Bxe5 {[%clk 0:01:40]} 1-0


[Site "https://www.chess.com"]

[Event "Titled Tuesday Blitz February 22 Early 2022"]
[White "Kozelov, Roman"]
[Black "Murthy, Pappu"]
[WhiteFideId "14133377"]
[BlackFideId "2013401"]
[WhiteElo "2160"]
[BlackElo "1912"]
[Result "0-1"]
[Round "02"]
[TimeControl "180+1"]
[Date "2022.02.22"]
[WhiteClock "0:01:03"]
[BlackClock "0:00:37"]

1. e4 {[%clk 0:03:00]}  c5 {[%clk 0:02:59]} 2. f3 {[%clk 0:03:00]}  d6 {[%clk 0:02:59]} 3. Nc3 {[%clk 0:02:54]}  g6 {[%clk 0:02:57]} 4. Bc4 {[%clk 0:02:55]}  Bg7 {[%clk 0:02:57]} 5. Nge2 {[%clk 0:02:55]}  Nf6 {[%clk 0:02:57]} 6. O-O {[%clk 0:02:55]}  O-O {[%clk 0:02:57]} 7. d4 {[%clk 0:02:54]}  cxd4 {[%clk 0:02:56]} 8. Nxd4 {[%clk 0:02:54]}  Nc6 {[%clk 0:02:56]} 9. Nxc6 {[%clk 0:02:53]}  bxc6 {[%clk 0:02:56]} 10. Be3 {[%clk 0:02:49]}  a6 {[%clk 0:02:52]} 11. Qd2 {[%clk 0:02:49]}  a5 {[%clk 0:02:52]} 12. Rad1 {[%clk 0:02:46]}  Ba6 {[%clk 0:02:51]} 13. Bxa6 {[%clk 0:02:45]}  Rxa6 {[%clk 0:02:52]} 14. e5 {[%clk 0:02:43]}  Nd5 {[%clk 0:02:44]} 15. Nxd5 {[%clk 0:02:43]}  cxd5 {[%clk 0:02:43]} 16. Qxd5 {[%clk 0:02:26]}  Bxe5 {[%clk 0:02:39]} 17. c3 {[%clk 0:02:23]}  Qa8 {[%clk 0:02:37]} 18. Qd3 {[%clk 0:02:01]}  Rb8 {[%clk 0:02:30]} 19. b3 {[%clk 0:01:54]}  a4 {[%clk 0:02:27]} 20. c4 {[%clk 0:01:50]}  axb3 {[%clk 0:02:26]} 21. axb3 {[%clk 0:01:50]}  Ra3 {[%clk 0:02:20]} 22. Rb1 {[%clk 0:01:47]}  Qb7 {[%clk 0:02:18]} 23. f4 {[%clk 0:01:45]}  Bg7 {[%clk 0:02:17]} 24. f5 {[%clk 0:01:44]}  Rxb3 {[%clk 0:02:16]} 25. Rxb3 {[%clk 0:01:42]}  Qxb3 {[%clk 0:02:17]} 26. Qe4 {[%clk 0:01:42]}  Bf6 {[%clk 0:02:00]} 27. fxg6 {[%clk 0:01:35]}  hxg6 {[%clk 0:01:59]} 28. h4 {[%clk 0:01:33]}  Rc8 {[%clk 0:01:55]} 29. Rc1 {[%clk 0:01:30]}  Kg7 {[%clk 0:01:37]} 30. Bg5 {[%clk 0:01:28]}  Qb6+ {[%clk 0:01:32]} 31. Kh1 {[%clk 0:01:27]}  Bxg5 {[%clk 0:01:24]} 32. c5 {[%clk 0:01:27]}  Rxc5 {[%clk 0:01:12]} 33. Rxc5 {[%clk 0:01:23]}  Qxc5 {[%clk 0:01:09]} 34. hxg5 {[%clk 0:01:23]}  Qxg5 {[%clk 0:01:09]} 35. Qd4+ {[%clk 0:01:22]}  Qf6 {[%clk 0:01:09]} 36. Qd5 {[%clk 0:01:18]}  e5 {[%clk 0:01:09]} 37. Kh2 {[%clk 0:01:16]}  e4 {[%clk 0:01:04]} 38. Kh1 {[%clk 0:01:14]}  Qf1+ {[%clk 0:01:02]} 39. Kh2 {[%clk 0:01:13]}  Qf4+ {[%clk 0:01:03]} 40. Kh1 {[%clk 0:01:13]}  e3 {[%clk 0:01:02]} 41. Qd3 {[%clk 0:01:12]}  Qe5 {[%clk 0:00:56]} 42. Qe2 {[%clk 0:01:11]}  d5 {[%clk 0:00:56]} 43. g3 {[%clk 0:01:08]}  d4 {[%clk 0:00:56]} 44. Kg2 {[%clk 0:01:06]}  Qe4+ {[%clk 0:00:56]} 45. Kh3 {[%clk 0:01:06]}  Qf5+ {[%clk 0:00:53]} 46. g4 {[%clk 0:01:05]}  Qe4 {[%clk 0:00:50]} 47. Kh4 {[%clk 0:01:04]}  Qh1+ {[%clk 0:00:40]} 48. Kg5 {[%clk 0:01:03]}  Qh6# {[%clk 0:00:37]} 0-1


[Site "https://www.chess.com"]

[Event "Titled Tuesday Blitz February 22 Early 2022"]
[White "Krsnik Cohar, Ivan Vihor"]
[Black "Dwilewicz, Katarzyna"]
[WhiteFideId "14520044"]
[BlackFideId "1148486"]
[WhiteElo "2414"]
[BlackElo "1907"]
[Result "1-0"]
[Round "02"]
[TimeControl "180+1"]
[Date "2022.02.22"]
[WhiteClock "0:01:49"]
[BlackClock "0:00:01"]

1. d4 {[%clk 0:03:00]}  Nf6 {[%clk 0:02:56]} 2. Bg5 {[%clk 0:03:01]}  g6 {[%clk 0:02:55]} 3. Nd2 {[%clk 0:03:01]}  Bg7 {[%clk 0:02:54]} 4. c3 {[%clk 0:03:02]}  h6 {[%clk 0:02:53]} 5. Bh4 {[%clk 0:03:02]}  d6 {[%clk 0:02:51]} 6. e4 {[%clk 0:03:02]}  O-O {[%clk 0:02:47]} 7. Ngf3 {[%clk 0:03:01]}  c5 {[%clk 0:02:37]} 8. e5 {[%clk 0:03:01]}  dxe5 {[%clk 0:02:27]} 9. dxe5 {[%clk 0:03:02]}  Nd5 {[%clk 0:02:24]} 10. Bc4 {[%clk 0:03:00]}  Nc6 {[%clk 0:02:19]} 11. Ne4 {[%clk 0:02:57]}  Nf4 {[%clk 0:02:07]} 12. Qxd8 {[%clk 0:02:55]}  Rxd8 {[%clk 0:02:01]} 13. O-O {[%clk 0:02:54]}  b6 {[%clk 0:01:53]} 14. Rad1 {[%clk 0:02:42]}  Bg4 {[%clk 0:01:43]} 15. e6 {[%clk 0:02:38]}  f5 {[%clk 0:01:35]} 16. Ned2 {[%clk 0:02:26]}  Na5 {[%clk 0:01:25]} 17. Ba6 {[%clk 0:02:23]}  g5 {[%clk 0:01:18]} 18. Bg3 {[%clk 0:02:23]}  Nxe6 {[%clk 0:01:18]} 19. h3 {[%clk 0:02:09]}  Bh5 {[%clk 0:01:02]} 20. Rde1 {[%clk 0:02:10]}  Kf7 {[%clk 0:00:59]} 21. Nc4 {[%clk 0:02:08]}  Bxf3 {[%clk 0:00:44]} 22. gxf3 {[%clk 0:02:08]}  f4 {[%clk 0:00:43]} 23. Nxa5 {[%clk 0:02:08]}  bxa5 {[%clk 0:00:37]} 24. Bc4 {[%clk 0:02:08]}  Rd6 {[%clk 0:00:35]} 25. Rxe6 {[%clk 0:02:08]}  Rxe6 {[%clk 0:00:34]} 26. Re1 {[%clk 0:02:08]}  fxg3 {[%clk 0:00:33]} 27. fxg3 {[%clk 0:02:08]}  Rd8 {[%clk 0:00:29]} 28. Rxe6 {[%clk 0:02:07]}  Kf8 {[%clk 0:00:28]} 29. Re2 {[%clk 0:02:05]}  e5 {[%clk 0:00:24]} 30. Kf2 {[%clk 0:02:05]}  Rd1 {[%clk 0:00:19]} 31. Bb3 {[%clk 0:02:03]}  Rd8 {[%clk 0:00:14]} 32. Ke3 {[%clk 0:02:02]}  Ke7 {[%clk 0:00:14]} 33. Ke4 {[%clk 0:02:01]}  Kf6 {[%clk 0:00:13]} 34. Bd5 {[%clk 0:01:59]}  Rd6 {[%clk 0:00:08]} 35. c4 {[%clk 0:01:59]}  Rd8 {[%clk 0:00:08]} 36. h4 {[%clk 0:01:55]}  Rd7 {[%clk 0:00:04]} 37. Rh2 {[%clk 0:01:55]}  gxh4 {[%clk 0:00:03]} 38. gxh4 {[%clk 0:01:54]}  Rd8 {[%clk 0:00:03]} 39. h5 {[%clk 0:01:54]}  Ke7 {[%clk 0:00:02]} 40. Rg2 {[%clk 0:01:55]}  Bf6 {[%clk 0:00:02]} 41. Rg6 {[%clk 0:01:55]}  Rh8 {[%clk 0:00:02]} 42. Kf5 {[%clk 0:01:55]}  Bg5 {[%clk 0:00:01]} 43. Rg7+ {[%clk 0:01:54]}  Kd6 {[%clk 0:00:01]} 44. Rxa7 {[%clk 0:01:54]}  Rf8+ {[%clk 0:00:01]} 45. Ke4 {[%clk 0:01:53]}  Rf4+ {[%clk 0:00:01]} 46. Kd3 {[%clk 0:01:53]}  Rd4+ {[%clk 0:00:02]} 47. Kc3 {[%clk 0:01:53]}  Rh4 {[%clk 0:00:02]} 48. Ra6+ {[%clk 0:01:51]}  Kd7 {[%clk 0:00:01]} 49. Rxa5 {[%clk 0:01:51]}  Rxh5 {[%clk 0:00:01]} 50. Ra7+ {[%clk 0:01:50]}  Kd6 {[%clk 0:00:01]} 51. Ra6+ {[%clk 0:01:50]}  Kd7 {[%clk 0:00:01]} 52. a4 {[%clk 0:01:50]}  Rh2 {[%clk 0:00:01]} 53. a5 {[%clk 0:01:49]} 1-0


[Site "https://www.chess.com"]